bitfinex/quotes_SOLUSD_20220207
["timestamp","ask_amount","ask_price","bid_price","bid_amount"]
[1644275819225,41.3687,117.82,117.69,43.86905134]
[1644275819419,35.3687,117.82,117.69,43.86905134]
[1644275819625,22.6302,117.82,117.69,43.86905134]
[1644275819820,22.6302,117.82,117.69,57.816141]
[1644275820020,22.7351,117.83,117.69,57.816141]
[1644275820224,2.39828655,117.88,117.69,57.816141]
[1644275820424,12.7342,117.86,117.69,57.816141]
[1644275820625,12.7342,117.86,117.7,4.245]
[1644275820822,12.7342,117.86,117.74,12.7328]
[1644275821022,12.7342,117.86,117.75,23.1753]
[1644275821221,12.7342,117.86,117.75,23.4253]
[1644275821424,12.7342,117.86,117.75,29.4253]
[1644275821823,12.9842,117.86,117.75,29.4253]
[1644275822023,12.9842,117.86,117.75,23.4253]
[1644275822229,15.13102857,117.86,117.75,23.4253]
[1644275822623,15.13102857,117.86,117.75,23.1753]
[1644275823925,21.13102857,117.86,117.74,23.9271]
[1644275824127,4.244,117.85,117.74,23.9271]
[1644275824429,12.7398,117.81,117.76,0.16145134]
[1644275825233,12.9898,117.81,117.76,0.16145134]
[1644275827130,12.9898,117.81,117.71,0.16145134]
[1644275828132,12.9898,117.81,117.71,12.90095134]
[1644275828331,12.9898,117.81,117.71,13.15095134]
[1644275828560,12.9898,117.81,117.71,0.41145134]
[1644275829462,12.9898,117.81,117.71,0.16145134]
[1644275831264,12.7398,117.81,117.71,0.16145134]
[1644275831665,18.7398,117.81,117.71,0.16145134]
[1644275831867,12.7398,117.81,117.71,0.16145134]
[1644275833068,12.9898,117.81,117.71,0.16145134]
[1644275834168,12.7398,117.81,117.71,0.16145134]
[1644275834368,12.7398,117.81,117.71,12.90095134]
[1644275834770,12.7398,117.81,117.71,13.15095134]
[1644275835570,12.9898,117.81,117.71,13.15095134]
[1644275837073,18.9898,117.81,117.71,13.15095134]
[1644275837575,12.9898,117.81,117.71,13.15095134]
[1644275837777,12.7398,117.81,117.71,13.15095134]
[1644275837976,12.7398,117.81,117.71,19.15095134]
[1644275838876,36.7765,117.82,117.71,19.15095134]
[1644275839275,36.7765,117.82,117.72,24.0328]
[1644275839476,36.7765,117.82,117.73,12.7373]
[1644275839675,36.7765,117.82,117.73,12.89875134]
[1644275839876,36.7765,117.82,117.73,13.14875134]
[1644275840975,12.7359,117.84,117.73,13.14875134]
[1644275841180,2.39828655,117.87,117.74,23.4605]
[1644275841376,25.84188655,117.89,117.77,12.7313]
[1644275841576,23.4436,117.89,117.78,24.0165]
[1644275841775,23.4436,117.89,117.78,24.2665]
[1644275841975,136.0259,117.9,117.78,30.2665]
[1644275842475,142.0259,117.9,117.78,30.2665]
[1644275842879,142.0259,117.9,117.79,0.16145134]
[1644275843077,154.7554,117.9,117.8,12.7298]
[1644275843278,154.7554,117.9,117.8,12.9798]
[1644275843680,154.7554,117.9,117.8,18.9798]
[1644275843882,154.7554,117.9,117.8,41.7778]
[1644275845081,131.8295,117.9,117.8,41.7778]
[1644275845980,131.8295,117.9,117.81,0.16145134]
[1644275846182,131.8295,117.9,117.81,12.89045134]
[1644275846380,131.8295,117.9,117.81,13.14045134]
[1644275846981,131.8295,117.9,117.81,0.41145134]
[1644275847204,133.97632857,117.9,117.81,0.16145134]
[1644275847385,157.67182857,117.9,117.81,0.16145134]
[1644275847781,12.7378,117.87,117.81,0.16145134]
[1644275848184,2.14682857,117.86,117.81,0.16145134]
[1644275848587,44.60382857,117.86,117.81,0.16145134]
[1644275848783,12.7371,117.85,117.81,0.16145134]
[1644275849189,12.7371,117.85,117.73,0.25]
[1644275849386,0.25,117.87,117.73,0.25]
[1644275849584,0.25,117.87,117.73,49.2457]
[1644275849787,0.25,117.87,117.74,4.244]
[1644275849987,12.7301,117.89,117.76,12.7336]
[1644275850183,113.1,117.9,117.76,48.0483]
[1644275850586,113.1,117.9,117.76,43.8053]
[1644275851185,113.35,117.9,117.76,43.8053]
[1644275851585,119.35,117.9,117.76,43.8053]
[1644275851988,132.0784,117.9,117.76,43.8053]
[1644275852187,132.0784,117.9,117.77,0.16145134]
[1644275852390,132.0784,117.9,117.8,12.7291]
[1644275852790,131.8284,117.9,117.8,12.9791]
[1644275854593,18.7284,117.9,117.8,12.9791]
[1644275854816,6.0,117.9,117.8,12.9791]
[1644275855216,12.7272,117.91,117.8,12.9791]
[1644275855616,12.7272,117.91,117.8,18.9791]
[1644275855822,18.7272,117.91,117.8,18.9791]
[1644275856117,18.7272,117.91,117.81,0.16145134]
[1644275856319,18.7272,117.91,117.81,12.88935134]
[1644275856519,18.7272,117.91,117.81,13.13935134]
[1644275857120,18.7272,117.91,117.81,0.41145134]
[1644275857519,20.87402857,117.91,117.81,0.41145134]
[1644275857724,20.87402857,117.91,117.81,0.16145134]
[1644275859323,20.87402857,117.91,117.79,12.89235134]
[1644275859822,21.12402857,117.91,117.79,12.89235134]
[1644275860121,18.9772,117.91,117.79,13.14235134]
[1644275860422,2.14682857,117.9,117.79,13.14235134]
[1644275860624,12.7314,117.87,117.79,13.14235134]
[1644275861223,12.7314,117.87,117.79,0.16145134]
[1644275861425,24.20022857,117.87,117.79,0.16145134]
[1644275862423,24.20022857,117.87,117.75,0.16145134]
[1644275862824,22.0534,117.87,117.75,0.16145134]
[1644275863026,12.7314,117.87,117.75,12.89585134]
[1644275863230,12.7314,117.87,117.75,13.14585134]
[1644275863827,18.7314,117.87,117.75,13.14585134]
[1644275864227,18.9814,117.87,117.75,13.14585134]
[1644275864627,18.7314,117.87,117.75,19.14585134]
[1644275865228,18.7314,117.87,117.75,13.14585134]
[1644275865828,12.7314,117.87,117.75,19.14585134]
[1644275866328,12.7301,117.88,117.75,19.14585134]
[1644275866530,12.7301,117.88,117.75,23.38885134]
[1644275866730,24.96,117.89,117.75,23.38885134]
[1644275866929,65.5984,117.92,117.75,23.38885134]
[1644275867133,65.5984,117.92,117.76,46.7625]
[1644275867333,65.5984,117.92,117.8,12.7277]
[1644275867529,65.5984,117.92,117.8,59.4902]
[1644275867733,12.7271,117.91,117.8,65.7402]
[1644275869338,12.9771,117.91,117.8,65.7402]
[1644275869536,18.9771,117.91,117.8,65.4902]
[1644275870837,18.9771,117.91,117.8,65.7402]
[1644275871041,18.9771,117.91,117.81,0.16145134]
[1644275871438,18.9771,117.91,117.82,12.7277]
[1644275871636,18.9771,117.91,117.81,0.16145134]
[1644275871637,2.14682857,117.9,117.81,0.16145134]
[1644275871836,12.7303,117.88,117.81,0.16145134]
[1644275873037,12.9803,117.88,117.81,0.16145134]
[1644275873237,18.9803,117.88,117.81,0.16145134]
[1644275874136,18.9803,117.88,117.77,0.16145134]
[1644275874938,18.9803,117.88,117.77,12.89455134]
[1644275875138,18.9803,117.88,117.77,13.14455134]
[1644275875339,12.7303,117.88,117.77,19.14455134]
[1644275875542,12.7292,117.89,117.77,19.14455134]
[1644275882548,18.7292,117.89,117.77,19.14455134]
[1644275883048,12.7292,117.89,117.77,19.14455134]
[1644275883447,12.7292,117.89,117.77,18.89455134]
[1644275883650,12.7292,117.89,117.78,24.1221]
[1644275883848,12.7292,117.89,117.78,36.8535]
[1644275884047,12.7292,117.89,117.79,0.16145134]
[1644275884654,20.87602857,117.89,117.79,0.16145134]
[1644275885651,18.7292,117.89,117.79,0.16145134]
[1644275886755,20.87602857,117.89,117.79,0.16145134]
[1644275887155,23.27431512,117.89,117.79,0.16145134]
[1644275887354,23.52431512,117.89,117.79,0.16145134]
[1644275887760,21.12602857,117.89,117.79,0.16145134]
[1644275887955,21.12602857,117.89,117.76,24.379]
[1644275888154,23.52431512,117.89,117.76,24.379]
[1644275888979,31.53905573,117.89,117.77,0.16145134]
[1644275889379,23.52431512,117.89,117.77,0.16145134]
[1644275894781,22.52431512,117.89,117.77,0.16145134]
[1644275894981,20.12602857,117.89,117.77,0.16145134]
[1644275895988,17.7292,117.89,117.77,0.16145134]
[1644275896183,17.7292,117.89,117.77,23.75935134]
[1644275896584,11.7292,117.89,117.77,30.00935134]
[1644275896883,11.7292,117.89,117.77,42.74255134]
[1644275897288,25.85998655,117.94,117.77,44.43634173]
[1644275897791,23.4617,117.94,117.78,12.79153411]
[1644275897986,115.49828655,117.95,117.79,23.6527]
[1644275898287,113.1,117.95,117.8,23.496]
[1644275898685,113.1,117.95,117.8,29.746]
[1644275898886,12.7254,117.92,117.82,12.7247]
[1644275899090,12.7254,117.92,117.82,18.7247]
[1644275899285,12.7254,117.92,117.82,18.9747]
[1644275899486,12.7254,117.92,117.82,6.25]
[1644275899686,14.87222857,117.92,117.81,23.6527]
[1644275899887,26.00830767,117.92,117.81,23.9027]
[1644275900390,32.00830767,117.92,117.81,23.9027]
[1644275900788,32.25830767,117.92,117.81,23.9027]
[1644275901187,32.25830767,117.92,117.81,0.25]
[1644275901389,32.25830767,117.92,117.82,0.16145134]
[1644275902291,4.7839063,117.91,117.82,0.16145134]
[1644275902492,12.7344,117.89,117.82,0.16145134]
[1644275903092,14.88122857,117.89,117.82,0.16145134]
[1644275903890,12.7344,117.89,117.82,0.16145134]
[1644275904290,18.7344,117.89,117.82,0.16145134]
[1644275904491,12.7344,117.89,117.76,0.16145134]
[1644275904892,12.7344,117.89,117.78,12.7304]
[1644275905093,12.9844,117.89,117.78,18.7304]
[1644275905292,12.7344,117.89,117.78,18.9804]
[1644275905495,12.7344,117.89,117.78,12.9804]
[1644275905692,18.7344,117.89,117.78,12.9804]
[1644275905892,12.7344,117.89,117.78,12.9804]
[1644275906095,20.88122857,117.89,117.76,0.16145134]
[1644275906495,32.01730767,117.89,117.76,0.16145134]
[1644275906693,32.26730767,117.89,117.76,0.16145134]
[1644275908400,45.1947114,117.89,117.76,0.16145134]
[1644275908600,99.75169795,117.89,117.76,0.16145134]
[1644275908799,99.75169795,117.89,117.75,0.16145134]
[1644275909000,18.30172064,117.88,117.75,0.16145134]
[1644275909202,12.7393,117.85,117.75,0.16145134]
[1644275909602,2.14682857,117.84,117.75,0.16145134]
[1644275909800,13.75556918,117.84,117.75,0.16145134]
[1644275910001,38.881768,117.83,117.75,0.16145134]
[1644275910202,35.182649,117.82,117.75,0.16145134]
[1644275910401,30.938649,117.81,117.75,0.16145134]
[1644275910705,33.08547757,117.81,117.75,0.16145134]
[1644275910900,29.442449,117.8,117.75,0.16145134]
[1644275911103,16.899702,117.8,117.75,0.16145134]
[1644275911303,14.06533706,117.82,117.75,0.16145134]
[1644275911706,22.6429,117.83,117.75,0.16145134]
[1644275911904,12.744,117.8,117.75,0.16145134]
[1644275912304,12.744,117.8,117.68,0.024]
[1644275913306,12.994,117.8,117.68,14.45789039]
[1644275913506,12.744,117.8,117.68,20.70789039]
[1644275913703,12.7386,117.82,117.68,20.70789039]
[1644275913904,12.7386,117.82,117.69,46.0736]
[1644275914104,12.7386,117.82,117.7,0.024]
[1644275914304,12.7386,117.82,117.7,1.71779039]
[1644275914505,12.7386,117.82,117.71,1.71779039]
[1644275914727,12.9886,117.82,117.71,1.96779039]
[1644275914928,12.9886,117.82,117.72,1.69379039]
[1644275915132,12.7386,117.82,117.72,0.18545134]
[1644275915330,12.7386,117.82,117.72,0.43545134]
[1644275916235,12.7386,117.82,117.72,0.18545134]
[1644275916639,12.9886,117.82,117.72,0.18545134]
[1644275917335,12.9886,117.82,117.72,1.87890113]
[1644275917633,12.9886,117.82,117.72,0.18545134]
[1644275917835,18.9886,117.82,117.72,0.43545134]
[1644275918235,18.9886,117.82,117.72,0.41145134]
[1644275918734,18.9886,117.82,117.72,0.16145134]
[1644275919135,18.9886,117.82,117.71,0.16145134]
[1644275919336,18.9886,117.82,117.71,0.18545134]
[1644275919537,2.14682857,117.81,117.71,0.18545134]
[1644275919836,12.7421,117.78,117.71,0.18545134]
[1644275920837,12.7407,117.8,117.71,0.18545134]
[1644275922938,18.7407,117.8,117.71,0.18545134]
[1644275923139,12.7407,117.8,117.71,0.18545134]
[1644275923339,18.7407,117.8,117.71,0.18545134]
[1644275923543,20.88752857,117.8,117.71,0.18545134]
[1644275924237,18.7407,117.8,117.71,0.18545134]
[1644275927241,18.9907,117.8,117.71,0.18545134]
[1644275929246,18.7407,117.8,117.71,0.18545134]
[1644275929646,43.4382,117.8,117.71,0.18545134]
[1644275929847,43.4382,117.8,117.71,0.16145134]
[1644275929848,45.58502857,117.8,117.71,0.16145134]
[1644275930048,58.33888544,117.8,117.71,0.16145134]
[1644275930248,71.46614886,117.8,117.68,0.18545134]
[1644275930849,71.71614886,117.8,117.68,0.18545134]
[1644275931252,43.6882,117.8,117.68,0.18545134]
[1644275931654,43.4382,117.8,117.68,0.18545134]
[1644275932452,43.4382,117.8,117.68,12.92585134]
[1644275932652,43.4382,117.8,117.69,23.7333]
[1644275932853,43.4382,117.8,117.7,0.024]
[1644275933252,43.4382,117.8,117.7,0.18545134]
[1644275934352,43.6882,117.8,117.7,0.18545134]
[1644275935155,50.08102857,117.8,117.7,0.18545134]
[1644275935553,77.15153122,117.8,117.7,0.16145134]
[1644275935754,1.18938236,117.79,117.7,0.16145134]
[1644275935955,12.7482,117.77,117.7,0.16145134]
[1644275936354,35.9348,117.77,117.67,0.16145134]
[1644275936956,35.9348,117.77,117.67,0.18545134]
[1644275937655,35.9348,117.77,117.67,1.39199891]
[1644275938155,35.9348,117.77,117.67,1.64199891]
[1644275938956,35.9348,117.77,117.67,26.02359891]
[1644275939660,35.9348,117.77,117.67,25.99959891]
[1644275939857,35.9348,117.77,117.67,25.74959891]
[1644275939858,42.1848,117.77,117.67,25.74959891]
[1644275940059,44.33162857,117.77,117.67,0.16145134]
[1644275940458,44.33162857,117.77,117.67,0.18545134]
[1644275941460,45.52101093,117.77,117.67,0.18545134]
[1644275941660,12.7505,117.74,117.67,0.16145134]
[1644275941860,12.534215,117.73,117.67,0.16145134]
[1644275942060,2.14682857,117.73,117.67,0.16145134]
[1644275942269,2.14682857,117.72,117.65,0.024]
[1644275942462,2.14682857,117.72,117.66,0.16145134]
[1644275942860,12.7517,117.72,117.66,0.16145134]
[1644275943863,18.7517,117.72,117.66,0.16145134]
[1644275944061,19.0017,117.72,117.66,0.16145134]
[1644275945964,19.0017,117.72,117.64,0.16145134]
[1644275948164,21.14852857,117.72,117.64,0.16145134]
[1644275948563,44.36162857,117.72,117.64,0.16145134]
[1644275948867,72.65289199,117.72,117.64,0.16145134]
[1644275949068,57.48889199,117.72,117.64,0.16145134]
[1644275949268,44.36162857,117.72,117.6,0.18545134]
[1644275949470,44.11162857,117.72,117.61,0.024]
[1644275949667,41.9648,117.72,117.61,0.024]
[1644275950179,44.11162857,117.72,117.61,0.024]
[1644275950579,4.249,117.71,117.61,0.024]
[1644275950781,12.7572,117.68,117.61,0.024]
[1644275951079,36.4233,117.68,117.6,0.16145134]
[1644275951280,38.57012857,117.68,117.6,0.16145134]
[1644275951481,36.4233,117.68,117.6,0.16145134]
[1644275951881,42.4233,117.68,117.6,0.16145134]
[1644275952280,42.6733,117.68,117.59,0.16145134]
[1644275952681,44.82012857,117.68,117.59,0.16145134]
[1644275955286,44.82012857,117.68,117.56,0.024]
[1644275955484,44.82012857,117.68,117.57,0.16145134]
[1644275955683,44.82012857,117.68,117.58,0.024]
[1644275956700,68.09122857,117.68,117.58,0.024]
[1644275957801,0.3212515,117.64,117.58,0.024]
[1644275958002,29.044114,117.63,117.57,0.16145134]
[1644275958311,56.05451381,117.63,117.52,0.024]
[1644275958501,10.93835184,117.62,117.52,0.18545134]
[1644275959406,2.14682857,117.62,117.52,0.18545134]
[1644275959804,12.765,117.59,117.52,0.18545134]
[1644275960003,12.765,117.59,117.52,0.16145134]
[1644275960704,13.015,117.59,117.52,0.16145134]
[1644275961804,13.015,117.59,117.49,0.16145134]
[1644275962008,13.015,117.59,117.49,0.18545134]
[1644275966611,19.015,117.59,117.49,0.18545134]
[1644275967611,19.015,117.59,117.49,0.16145134]
[1644275967816,18.765,117.59,117.49,0.16145134]
[1644275968012,12.765,117.59,117.49,0.16145134]
[1644275968212,12.765,117.59,117.49,0.18545134]
[1644275969212,13.015,117.59,117.49,0.18545134]
[1644275971817,19.015,117.59,117.49,0.18545134]
[1644275972018,6.25,117.59,117.49,0.18545134]
[1644275972216,0.25,117.59,117.49,0.18545134]
[1644275972418,0.25,117.59,117.49,23.15795134]
[1644275972617,55.5255,117.6,117.49,29.40795134]
[1644275973017,68.2875,117.6,117.49,29.40795134]
[1644275975759,70.43432857,117.6,117.49,29.40795134]
[1644275976157,70.68432857,117.6,117.49,29.40795134]
[1644275976756,98.7339964,117.6,117.49,29.40795134]
[1644275976953,98.7339964,117.6,117.49,29.15795134]
[1644275977154,98.7339964,117.6,117.49,6.18545134]
[1644275978556,96.58716783,117.6,117.49,6.43545134]
[1644275979357,96.58716783,117.6,117.49,0.43545134]
[1644275979657,96.58716783,117.6,117.49,6.43545134]
[1644275979858,96.58716783,117.6,117.5,24.7972]
[1644275980060,96.58716783,117.6,117.5,24.8212]
[1644275980258,96.58716783,117.6,117.5,25.0712]
[1644275980459,82.80990441,117.6,117.51,0.16145134]
[1644275980658,82.80990441,117.6,117.51,0.18545134]
[1644275982360,82.80990441,117.6,117.57,1.8439779]
[1644275982562,33.28440441,117.6,117.57,1.8439779]
[1644275983260,19.012,117.6,117.57,1.8439779]
[1644275983459,19.012,117.6,117.58,0.16145134]
[1644275984163,18.762,117.6,117.58,0.16145134]
[1644275985462,12.762,117.6,117.58,0.16145134]
[1644275988268,13.012,117.6,117.58,0.16145134]
[1644275990976,13.012,117.6,117.59,0.15032255]
[1644275991179,12.76,117.61,117.58,3.19365131]
[1644275991378,1.18938236,117.64,117.59,0.16145134]
[1644275991577,47.97238236,117.65,117.59,0.16145134]
[1644275991779,53.97238236,117.65,117.59,0.16145134]
[1644275992176,54.22238236,117.65,117.59,0.16145134]
[1644275992977,12.7587,117.63,117.59,0.16145134]
[1644275994396,12.7587,117.63,117.58,0.16145134]
[1644275999408,13.0087,117.63,117.58,0.16145134]
[1644276000208,19.0087,117.63,117.58,0.16145134]
[1644276001007,18.7587,117.63,117.58,0.16145134]
[1644276001210,4.253,117.65,117.58,0.16145134]
[1644276001409,12.7563,117.64,117.58,0.16145134]
[1644276002610,12.7563,117.64,117.61,1.8439779]
[1644276003020,12.7563,117.64,117.62,0.16145134]
[1644276003811,4.253,117.65,117.62,0.16145134]
[1644276004014,17.0082,117.65,117.62,0.16145134]
[1644276005418,4.253,117.65,117.62,0.16145134]
[1644276005816,4.253,117.65,117.63,3.03219997]
[1644276006118,4.253,117.65,117.63,11.59407847]
[1644276006316,4.253,117.65,117.64,0.16145134]
[1644276007417,4.503,117.65,117.64,0.16145134]
[1644276008918,17.2583,117.65,117.64,0.16145134]
[1644276009917,17.0083,117.65,117.64,0.16145134]
[1644276010320,17.0083,117.65,117.62,0.16145134]
[1644276011320,17.2583,117.65,117.62,0.16145134]
[1644276012719,17.0083,117.65,117.62,0.16145134]
[1644276013524,4.253,117.65,117.62,0.16145134]
[1644276013725,4.253,117.65,117.63,5.59509055]
[1644276013925,4.253,117.65,117.62,0.16145134]
[1644276015121,4.253,117.65,117.63,5.59509055]
[1644276015321,4.253,117.65,117.63,5.84509055]
[1644276015524,4.253,117.65,117.64,0.16145134]
[1644276018528,10.253,117.65,117.64,0.16145134]
[1644276018728,4.253,117.65,117.64,0.16145134]
[1644276019027,4.253,117.65,117.61,1.8439779]
[1644276019028,6.39982857,117.65,117.55,0.024]
[1644276019234,41.491734,117.64,117.57,0.024]
[1644276019430,46.3751,117.63,117.57,0.024]
[1644276019633,12.527475,117.62,117.5,0.024]
[1644276019831,2.14682857,117.62,117.5,0.024]
[1644276020031,24.3879,117.61,117.48,1.23054757]
[1644276020231,24.3879,117.61,117.49,0.024]
[1644276020632,24.3879,117.61,117.49,1.72299917]
[1644276020832,22.7459,117.63,117.5,0.024]
[1644276021237,22.7459,117.63,117.5,1.72299917]
[1644276021437,22.7459,117.63,117.51,0.024]
[1644276021636,22.7358,117.62,117.51,0.024]
[1644276021935,22.7358,117.62,117.51,1.72299917]
[1644276022136,12.7597,117.61,117.5,0.024]
[1644276022533,12.7597,117.61,117.5,1.72299917]
[1644276022833,12.7597,117.61,117.51,0.024]
[1644276023234,12.7597,117.61,117.51,1.72299917]
[1644276023733,12.7597,117.61,117.51,1.97299917]
[1644276023935,18.7597,117.61,117.51,1.97299917]
[1644276024137,19.0097,117.61,117.51,24.84649917]
[1644276024633,13.0097,117.61,117.51,24.84649917]
[1644276025734,19.0097,117.61,117.51,24.84649917]
[1644276025934,13.0097,117.61,117.51,24.84649917]
[1644276026835,19.0097,117.61,117.51,0.274]
[1644276027254,19.0097,117.61,117.51,1.69899917]
[1644276027654,19.0097,117.61,117.51,1.97299917]
[1644276028254,19.0097,117.61,117.51,0.024]
[1644276028455,2.14682857,117.6,117.5,0.024]
[1644276028655,12.7663,117.57,117.5,0.024]
[1644276028855,12.7663,117.57,117.49,29.8725]
[1644276029857,12.7663,117.57,117.49,30.1225]
[1644276031858,22.3213,117.57,117.49,23.8725]
[1644276032061,28.5713,117.57,117.49,23.8725]
[1644276032458,30.71812857,117.57,117.48,0.024]
[1644276032658,93.01751421,117.57,117.46,0.86887796]
[1644276033859,90.87068564,117.57,117.46,0.86887796]
[1644276036870,93.01751421,117.57,117.46,0.86887796]
[1644276037671,90.87068564,117.57,117.46,0.86887796]
[1644276040773,90.87068564,117.57,117.43,30.08437796]
[1644276040972,90.87068564,117.57,117.43,28.08437796]
[1644276041673,93.01751421,117.57,117.43,28.08437796]
[1644276042173,31.790865,117.46,117.43,28.08437796]
[1644276042472,31.790865,117.46,117.44,5.91169031]
[1644276042872,31.790865,117.46,117.44,6.16169031]
[1644276043174,31.790865,117.46,117.44,5.91169031]
[1644276044472,31.790865,117.46,117.44,6.16169031]
[1644276044974,31.790865,117.46,117.44,5.91169031]
[1644276045375,31.790865,117.46,117.41,22.6272]
[1644276045574,31.790865,117.46,117.41,28.6272]
[1644276046780,31.790865,117.46,117.41,28.8772]
[1644276049379,31.790865,117.46,117.42,1.69962797]
[1644276049581,1.670865,117.46,117.42,7.69962797]
[1644276049879,0.000865,117.46,117.42,7.94962797]
[1644276050083,0.000865,117.46,117.43,24.4528]
[1644276050282,0.000865,117.46,117.44,5.91190806]
[1644276050681,0.000865,117.46,117.44,6.16190806]
[1644276052982,0.000865,117.46,117.44,5.91190806]
[1644276054182,0.000865,117.46,117.44,6.16190806]
[1644276054683,0.000865,117.46,117.44,5.91190806]
[1644276056187,0.000865,117.46,117.4,0.38640304]
[1644276057187,0.000865,117.46,117.4,0.41040304]
[1644276057388,0.000865,117.46,117.4,0.38640304]
[1644276063121,0.000865,117.46,117.4,2.08172831]
[1644276063320,0.000865,117.46,117.4,2.33172831]
[1644276063517,0.000865,117.46,117.4,8.33172831]
[1644276063921,0.000865,117.46,117.4,12.58872831]
[1644276064120,0.000865,117.46,117.41,23.1665]
[1644276064319,0.000865,117.46,117.42,0.024]
[1644276065522,0.000865,117.46,117.41,29.3925]
[1644276065725,0.000865,117.46,117.41,29.1425]
[1644276066122,0.000865,117.46,117.41,23.1425]
[1644276066822,0.000865,117.46,117.41,29.1425]
[1644276067023,0.000865,117.46,117.41,23.3925]
[1644276067225,0.000865,117.46,117.4,0.41040304]
[1644276067425,23.687665,117.46,117.4,0.38640304]
[1644276067624,23.687665,117.46,117.41,0.024]
[1644276067824,23.687665,117.46,117.4,0.38640304]
[1644276069727,23.937665,117.46,117.4,0.38640304]
[1644276071528,23.687665,117.46,117.4,0.38640304]
[1644276072132,23.687665,117.46,117.41,0.34912342]
[1644276072331,29.687665,117.46,117.41,0.34912342]
[1644276072529,23.687665,117.46,117.41,0.34912342]
[1644276072930,29.687665,117.46,117.41,0.34912342]
[1644276073735,29.937665,117.46,117.41,0.34912342]
[1644276076133,19.027665,117.46,117.41,0.34912342]
[1644276077733,21.17449357,117.46,117.41,0.34912342]
[1644276079758,19.027665,117.46,117.41,0.34912342]
[1644276080338,18.777665,117.46,117.41,0.34912342]
[1644276083442,12.777665,117.46,117.41,0.34912342]
[1644276085742,0.000865,117.46,117.41,0.34912342]
[1644276085947,0.000865,117.46,117.41,0.37312342]
[1644276086148,0.000865,117.46,117.42,1.69570921]
[1644276086344,0.000865,117.46,117.42,1.94570921]
[1644276086545,0.000865,117.46,117.42,7.96970921]
[1644276086743,0.000865,117.46,117.43,0.34912342]
[1644276086943,0.000865,117.46,117.44,3.03219997]
[1644276087147,0.000865,117.46,117.43,0.34912342]
[1644276087345,0.000865,117.46,117.43,0.37312342]
[1644276087544,0.000865,117.46,117.43,0.34912342]
[1644276088349,0.000865,117.46,117.44,3.03219997]
[1644276088560,0.000865,117.46,117.44,3.05619997]
[1644276089353,0.000865,117.46,117.45,2.57157769]
[1644276089551,0.000865,117.46,117.44,3.03219997]
[1644276089751,0.000865,117.46,117.44,0.024]
[1644276089952,0.000865,117.46,117.45,0.34912342]
[1644276090150,12.776665,117.46,117.45,0.34912342]
[1644276090351,0.000865,117.46,117.45,0.34912342]
[1644276090954,0.000865,117.46,117.45,5.95290108]
[1644276091153,0.000865,117.46,117.45,3.38132339]
[1644276091553,0.000865,117.46,117.45,0.34912342]
[1644276092053,0.000865,117.46,117.45,2.92070111]
[1644276092253,0.000865,117.46,117.45,5.95290108]
[1644276098781,0.000865,117.46,117.45,0.34912342]
[1644276099483,0.000865,117.46,117.43,0.34912342]
[1644276099680,2.14769357,117.46,117.43,0.34912342]
[1644276099880,12.776665,117.46,117.43,0.34912342]
[1644276100082,12.776665,117.46,117.44,3.1607898]
[1644276100284,0.000865,117.46,117.44,3.1607898]
[1644276101482,12.776565,117.46,117.44,3.1607898]
[1644276101686,12.776565,117.46,117.43,0.34912342]
[1644276102684,15.17339357,117.46,117.42,0.34912342]
[1644276102893,13.026565,117.46,117.42,0.34912342]
[1644276103085,15.17339357,117.46,117.42,0.34912342]
[1644276103282,19.43039357,117.46,117.42,0.34912342]
[1644276103485,17.283565,117.46,117.42,0.34912342]
[1644276104085,17.033565,117.46,117.42,0.34912342]
[1644276104296,12.776565,117.46,117.42,0.34912342]
[1644276105787,12.776565,117.46,117.41,0.34912342]
[1644276107289,0.000865,117.46,117.41,0.34912342]
[1644276109989,0.000865,117.46,117.41,0.37312342]
[1644276110189,0.000865,117.46,117.41,13.12232342]
[1644276110594,0.000865,117.46,117.41,13.37232342]
[1644276110991,0.000865,117.46,117.41,0.34912342]
[1644276111292,0.000865,117.46,117.42,0.024]
[1644276111490,0.000865,117.46,117.41,0.34912342]
[1644276111790,0.000865,117.46,117.43,0.34912342]
[1644276112193,12.776365,117.46,117.43,0.34912342]
[1644276113893,20.92319357,117.46,117.43,0.34912342]